[Event "45th FIDE Olympiad 2024"]
[Site "Budapest"]
[Date "2024.09.12"]
[Round "2.25"]
[White "Rodrigue-Lemieux, Shawn"]
[Black "Christiansen, Johan-Sebastian"]
[Result "1-0"]
[ECO "C07"]
[WhiteElo "2509"]
[BlackElo "2661"]
[Annotator "TA"]
[PlyCount "205"]
[EventDate "2024.09.05"]
[EventType "team-tourn"]
[EventCountry "HUN"]
[SourceTitle "playchess.com"]
[Source "ChessBase"]
[SourceQuality "1"]
[WhiteTeam "Canada"]
[BlackTeam "Norway"]
[WhiteTeamCountry "CAN"]
[BlackTeamCountry "NOR"]
[TimeControl "40/5400+30:1800+30"]

{[%evp 127,205,0,0,0,0,0,0,0,0,0,268,268,268,268,378,385,378,371,364,343,364,364,364,364,339,347,12797,5257,339,339,12797,12797,12796,12793,12491,2873,12807,12810,12814,12813,12826,12821,12838,12840,29944,29945,29978,29973,29973,29974,29970,29960,29972,29973,29977,29978,29985,29986,29986,29980,29979,0,29986,29987,29987,29988,29988,29989,29989,29990,29992,29993,29993,29993,29993,29991,29991,29990,29991,29991]} 1. e4 {[%emt 0:00:08]} e6 {[%emt 0:00:45]} 2. d4 {[%emt 0:00:09]} d5 {[%emt 0:00:07]} 3. Nd2 {[%emt 0:00:07]} c5 {[%emt 0:00:55]} 4. exd5 {[%emt 0:00:11]} Qxd5 {[%emt 0:00:31]} 5. Ngf3 {[%emt 0:00:08]} cxd4 {[%emt 0:00:10]} 6. g3 {[%emt 0:00:08] C07: French Tarrasch: 3...c5, 4 Ngf3 and 4 exd5 Qxd5.} Nc6 {[%emt 0:00:37]} 7. Bg2 {[%emt 0:00:11]} Qb5 {[%emt 0:00:04]} 8. a4 {[%emt 0:01:07]} Qa6 {[%emt 0:00:25]} 9. Bf1 {[%emt 0:00:09]} Qa5 {[%emt 0:00:04]} 10. Bg2 {[%emt 0:00:10]} Qa6 {[%emt 0:00:05]} 11. Bf1 {[%emt 0:00:13]} Qa5 {[%emt 0:00:01]} 12. Bg2 $146 {[%emt 0:00:41]} ({Predecessor:} 12. Bb5 Bd7 13. O-O Nf6 14. Nc4 Qd8 15. Nxd4 Nxd4 16. Qxd4 Rc8 17. Rd1 Nd5 18. Ne3 Nb6 {1-0 Boraso,A (2330)-Thiel,T (2215) Forni di Sopra op 14th 2023 (5)}) 12... e5 {[%emt 0:09:57]} 13. O-O {[%emt 0:03:56]} Be6 {[%emt 0:00:15]} 14. c3 {[%emt 0:36:07]} dxc3 {[%emt 0:02:00]} 15. bxc3 {[%emt 0:00:47]} Qxc3 {[%emt 0:12:50]} 16. Rb1 {[%emt 0:01:27]} O-O-O {[%emt 0:01:02]} 17. Ng5 {[%emt 0:05:54]} Nf6 {[%emt 0:04:46]} 18. Nxe6 {[%emt 0:07:19]} fxe6 {[%emt 0:00:07]} 19. a5 {[%emt 0:03:26]} a6 {[%emt 0:42:15]} 20. Qa4 {[%emt 0:04:10]} Rd4 {[%emt 0:01:57]} 21. Qa2 {[%emt 0:00:45]} Nd5 {[%emt 0:00:29]} 22. Nf3 {[%emt 0:07:16]} Rd3 {[%emt 0:09:18]} 23. Ng5 {[%emt 0:12:13]} Nd4 {[%emt 0:05:34]} 24. Nf7 {[%emt 0:08:08]} Rg8 {[%emt 0:05:22]} 25. Nxe5 {[%emt 0:04:44]} Nb4 {[%emt 0:00:01]} 26. Rxb4 {[%emt 0:00:17]} Bxb4 {[%emt 0:00:05]} 27. Nxd3 {[%emt 0:01:58]} Qxd3 {[%emt 0:00:02]} 28. Be3 {[%emt 0:00:44]} Kb8 {[%emt 0:03:33]} 29. Qb2 {[%emt 0:00:42]} Ne2+ {[%emt 0:00:20]} 30. Kh1 {[%emt 0:00:04]} Qb5 {[%emt 0:00:13]} 31. Qc2 {[%emt 0:01:39]} g6 {[%emt 0:00:42]} 32. Bb6 {[%emt 0:00:51]} Nc3 {[%emt 0:00:27]} 33. Rc1 {[%emt 0:00:36]} Rc8 {[%emt 0:01:16]} 34. Qb3 {[%emt 0:00:13]} Nd5 {[%emt 0:00:36]} 35. Ba7+ {[%emt 0:00:39]} Kxa7 {[%emt 0:00:02]} 36. Rxc8 {[%emt 0:00:04]} Qxa5 {[%emt 0:00:52]} 37. h4 {[%emt 0:00:10]} Bc5 {[%emt 0:00:42]} 38. Kh2 {[%emt 0:01:27]} Bxf2 {[%emt 0:00:15]} 39. Qf3 {[%emt 0:00:13]} Qe1 {[%emt 0:00:30]} 40. Re8 {[%emt 0:00:43]} Bg1+ {[%emt 0:00:36]} 41. Kh3 {[%emt 0:30:05]} Qe5 {[%emt 0:21:35]} 42. Rf8 {[%emt 0:00:00]} Bb6 {[%emt 0:02:16]} 43. Rf7 {[%emt 0:00:00]} h5 {[%emt 0:02:53]} 44. Qd3 {[%emt 0:00:00]} g5 {[%emt 0:01:09]} 45. hxg5 {[%emt 0:00:00]} Qxg5 {[%emt 0:00:01]} 46. Qh7 {[%emt 0:00:00]} Bc7 {[%emt 0:03:22]} 47. Rxc7 {[%emt 0:00:00]} Nxc7 {[%emt 0:00:06]} 48. Qxc7 {[%emt 0:00:00]} Qg4+ {[%emt 0:00:53]} 49. Kh2 {[%emt 0:00:00]} Qb4 {[%emt 0:00:08]} 50. Qf7 {[%emt 0:00:00]} a5 {[%emt 0:01:44]} 51. Qxe6 {[%emt 0:00:42]} a4 {[%emt 0:00:00]} 52. Qe3+ {[%emt 0:00:38]} Qb6 {[%emt 0:01:34]} 53. Qe7 {[%emt 0:00:02]} Qa6 {[%emt 0:00:57]} 54. Kh3 {[%emt 0:02:26]} a3 {[%emt 0:00:02]} 55. Bxb7 {[%emt 0:00:27]} Qxb7 {[%emt 0:00:05]} 56. Qxa3+ {[%emt 0:00:06]} Kb8 {[%emt 0:00:01]} 57. Qd6+ {[%emt 0:00:22]} Ka8 {[%emt 0:00:56]} 58. Qd8+ {[%emt 0:00:17]} Ka7 {[%emt 0:00:06]} 59. Qa5+ {[%emt 0:00:02]} Kb8 {[%emt 0:00:04]} 60. Qe5+ {[%emt 0:01:14]} Ka8 {[%emt 0:00:11]} 61. Qxh5 {[%emt 0:02:53]} Qh1+ {[%emt 0:00:02]} 62. Kg4 {[%emt 0:00:03]} Qe4+ {[%emt 0:01:45]} 63. Kg5 {[%emt 0:00:05]} Qe5+ {[%emt 0:01:17]} 64. Kh4 {[%emt 0:00:05]} Qe4+ {[%emt 0:00:23]} 65. g4 {[%emt 0:00:32]} Qe1+ {[%emt 0:00:14]} 66. Kg5 {[%emt 0:00:10]} Qe5+ {[%emt 0:00:15]} 67. Kg6 {[%emt 0:00:09]} Qe6+ {[%emt 0:00:37]} 68. Kg7 {[%emt 0:00:26]} (68. Kg5 $5 Qe5+ $8 69. Kg6 Qd6+ 70. Kg7 Qe7+ 71. Kg8 $16 (71. Qf7 Qg5+ 72. Qg6 Qe7+ 73. Kg8 Qd8+ 74. Kf7 Qc7+ 75. Kf8 Qf4+ 76. Kg7 Qd4+ 77. Kh7 Qd7+ 78. Kh6 Qd8 $18)) 68... Qd7+ $2 {[%emt 0:00:38][%mdl 8192]} (68... Qe7+ $11 {and Black has nothing to worry.} 69. Qf7 Qg5+ 70. Qg6 Qe7+ 71. Kg8 Qd8+ 72. Kf7 Qd5+ 73. Qe6 Qb7+ 74. Kg6 Qb6) 69. Kh6 $18 {[%emt 0:00:13]} Qd6+ {[%emt 0:00:24]} 70. Qg6 {[%emt 0:00:17]} Qh2+ {[%emt 0:00:26]} (70... Qf8+ {is a better defense.} 71. Kh7 Qe7+ 72. Qg7 Qh4+ 73. Kg8 Kb8) 71. Kg7 $18 {[%emt 0:00:20]} Qc7+ {[%emt 0:00:34]} 72. Qf7 {[%emt 0:00:29]} Qe5+ {[%emt 0:00:39]} 73. Kh7 {[%emt 0:01:11]} Qe4+ {[%emt 0:00:18]} 74. Qf5 {[%emt 0:00:16]} Qb7+ {[%emt 0:01:05]} 75. Kg8 {[%emt 0:00:21]} Qb3+ {[%emt 0:00:18]} 76. Qf7 {[%emt 0:00:33]} Qe3 $2 {[%emt 0:00:51]} (76... Qg3 77. Qe8+ Kb7) 77. Qd5+ $18 {[%emt 0:00:29]} Kb8 {[%emt 0:00:14]} 78. g5 {[%emt 0:00:17]} Qe8+ $2 {[%emt 0:00:22]} (78... Qg3 79. Kf7 Qf4+ 80. Ke6 Qg4+ 81. Ke7 Qh4 82. Qe5+ Ka7) 79. Kg7 {[%emt 0:00:15]} Qe7+ {[%emt 0:00:01]} 80. Kh8 {[%emt 0:00:24]} Qe3 {[%emt 0:01:01]} 81. Qd6+ {[%emt 0:00:30]} Ka8 {[%emt 0:00:01]} 82. Qc6+ {[%emt 0:02:03]} Ka7 {[%emt 0:00:58]} 83. g6 {[%emt 0:00:08]} Qh3+ {[%emt 0:00:24]} 84. Kg7 {[%emt 0:00:47]} Kb8 {[%emt 0:00:43]} 85. Kf6 {[%emt 0:01:21]} Qf1+ {[%emt 0:00:44]} 86. Ke7 {[%emt 0:00:07]} Qg1 {[%emt 0:00:42]} 87. Qd6+ {[%emt 0:00:34]} Ka8 {[%emt 0:00:06]} 88. Qd5+ {[%emt 0:00:29]} Ka7 {[%emt 0:00:12]} 89. Kf7 {[%emt 0:00:28]} Qf2+ {[%emt 0:00:46]} 90. Kg8 {[%emt 0:00:06]} Qg3 {[%emt 0:00:54]} 91. g7 {[%emt 0:00:39]} Qb8+ {[%emt 0:00:36]} 92. Kf7 {[%emt 0:00:07]} Qc7+ {[%emt 0:00:37]} 93. Kf6 {[%emt 0:01:16]} Qc3+ {[%emt 0:00:24]} 94. Kf7 {[%emt 0:00:28]} Qc7+ {[%emt 0:00:08]} 95. Kf8 {[%emt 0:00:15]} Qb8+ {[%emt 0:00:15] [#]} 96. Ke7 $1 {[%emt 0:00:07]} Qb4+ {[%emt 0:00:06]} 97. Ke8 {[%emt 0:00:52]} Qb8+ {[%emt 0:00:37]} 98. Kd7 {[%emt 0:00:19]} Qb4 {[%emt 0:01:29]} 99. g8=Q {[%emt 0:01:36]} Qb5+ {[%emt 0:00:23]} 100. Ke7 {[%emt 0:00:17]} Qb4+ {[%emt 0:00:12]} 101. Kf6 {[%emt 0:01:00]} Qf4+ {[%emt 0:00:24]} 102. Kg7 {[%emt 0:00:40]} Qg4+ {[%emt 0:00:55]} 103. Kh8 {[%emt 0:00:27]} 1-0

[Event "45th FIDE Olympiad 2024"]
[Site "Budapest"]
[Date "2024.09.12"]
[Round "2.25"]
[White "Mafaaz, Khalid"]
[Black "Aziz, Husain"]
[Result "0-1"]
[ECO "D63"]
[WhiteElo "2069"]
[BlackElo "2340"]
[Annotator "TA"]
[PlyCount "124"]
[EventDate "2024.09.05"]
[EventType "team-tourn"]
[EventCountry "HUN"]
[SourceTitle "playchess.com"]
[Source "ChessBase"]
[SourceQuality "1"]
[WhiteTeam "Pakistan"]
[BlackTeam "Qatar"]
[WhiteTeamCountry "PAK"]
[BlackTeamCountry "QAT"]
[TimeControl "40/5400+30:1800+30"]

{[%evp 31,124,-14,0,-38,-26,-55,-29,-58,-52,-56,-53,-68,-68,-133,-18,-103,-131,-124,-119,-133,-66,-269,-273,-254,-277,-288,-301,-355,-309,-461,-466,-488,-457,-741,-718,-620,-499,-462,-488,-480,-464,-570,-582,-692,-684,-665,-620,-1118,-1157,-1122,-1125,-1642,-1155,-1287,-1084,-29979,-1865,-2153,-2127,-2638,-2505,-29971,-29972,-29969,-29966,-29955,-29957,-11620,-910,-890,-879,-785,-674,-1057,-1020,-1084,-962,-1024,-1056,-1098,-1048,-1047,-889,-5197,-5195,-10732,-2657,-29966,-29966,-29969,-29969,-29967,-29966,-29965,-29963]} 1. d4 d5 2. c4 e6 3. Nc3 Nf6 4. Nf3 Be7 5. Bg5 h6 6. Bh4 dxc4 7. e3 a6 8. Bxc4 b5 9. Bd3 Bb7 10. O-O Nbd7 11. Rc1 O-O 12. Qe2 c5 13. Bxf6 {D63: Queen's Gambit Declined: Classical: 7 Rc1.} Bxf6 14. Be4 Bxe4 15. Nxe4 c4 16. Rfd1 $146 ({Predecessor:} 16. a4 Be7 17. Rfd1 Nb6 18. axb5 axb5 19. Ne5 Qe8 20. Ra1 f6 21. Nf3 {½-½ Huda,M (2161)-Klek,H (2327) EU-ch (Women) 19th 2018 (3)}) 16... Qb6 17. g4 Be7 18. Ng3 Rfd8 19. e4 Nf8 20. e5 Ra7 21. Qe3 Rad7 22. h4 (22. Qe4 $15) 22... f6 (22... Ng6 $17 23. h5 Nh4 24. Nxh4 Bxh4) 23. Nh5 (23. Ne2 $1 $11 {keeps the balance.}) 23... fxe5 $17 24. Qxe5 Bd6 25. Qe2 Qc6 ({Black should play} 25... Qb7 $17 {...Ng6 would now be deadly.} 26. Rc3 Qd5) 26. d5 $2 (26. Rc3 $1 $15) 26... exd5 $19 27. Nd4 Qb6 28. Nf5 Bc5 29. Rc3 Qe6 30. Qf1 (30. Qd2 {was worth a try.}) 30... d4 $19 31. Rf3 d3 32. g5 (32. Re1 $142 Qg6 33. Qh3) 32... hxg5 $19 33. hxg5 Qe2 34. Kg2 Qxf1+ (34... Qxb2 35. Qh1 $17) 35. Kxf1 Rf7 36. Kg2 Ng6 37. Nhxg7 Rxg7 38. Nh6+ Kh7 39. Rh1 Nh4+ 40. Rxh4 Rxg5+ 41. Kh3 Rd4 42. Rf7+ Kg6 43. f4 Rh5 (43... d2 $142 44. f5+ Rxf5 45. Rg7+ Kxg7 46. Nxf5+ Kf6 47. Nxd4 d1=Q (47... d1=B 48. Kg2 $11) 48. Rh6+ Kg5 49. Ne6+ Kxh6 50. Nxc5 Qh5+ 51. Kg3 Qxc5 52. Kf4 Qd4+ 53. Kf5 Qxb2 54. Kf4 c3 (54... Qxa2 55. Ke3 c3 56. Ke4 c2 57. Kf4 c1=Q+ 58. Ke5 Qg5+ 59. Kd6 Qad5+ 60. Kc7 Qgd8#) 55. Kf5 c2 (55... Qxa2 56. Ke4 c2 57. Kf4 c1=Q+ 58. Ke5 Qg5+ 59. Kd6 Qad5+ 60. Kc7 Qgd8#) 56. Kg4 c1=Q (56... c1=R 57. Kg3 Qe2 58. Kf4 Rf1+ 59. Kg3 Rf3+ 60. Kh4 Qe4#) 57. Kf3 Qf6+ (57... Qxa2 $2 58. Ke4 Qg5 59. Kf3 Qag2#) 58. Kg3 Qff4+ 59. Kh3 Qh1#) 44. Rxh5 $19 Kxh5 45. Ng4 d2 46. Ne5 Rxf4 ({And not} 46... d1=R 47. Rh7#) 47. Rxf4 d1=Q (47... d1=B $2 {perishes.} 48. Rf5+ Kh6 49. Nxc4 $18) 48. Rf5+ Kh6 49. Ng4+ Kg7 50. Rxc5 Qh1+ 51. Nh2 Qe4 52. Rg5+ Kf8 53. Ng4 b4 54. Rg8+ {[#]} Kf7 $1 55. Rc8 Qd3+ 56. Kh4 Qd4 57. Kg5 c3 58. bxc3 bxc3 (58... Qd2+ $142 59. Kh5 bxc3 60. Ne5+ Ke7) 59. Nh6+ Ke6 60. Re8+ Kd7 61. Re7+ Kd8 ({Weaker is} 61... Kxe7 62. Nf5+ Ke6 63. Nxd4+ $11) 62. Re2 Qd2+ 0-1

[Event "45th FIDE Olympiad 2024"]
[Site "Budapest"]
[Date "2024.09.12"]
[Round "2.26"]
[White "Tari, Aryan"]
[Black "Panjwani, Raja"]
[Result "1-0"]
[ECO "B27"]
[WhiteElo "2642"]
[BlackElo "2460"]
[Annotator "TA"]
[PlyCount "97"]
[EventDate "2024.09.05"]
[EventType "team-tourn"]
[EventCountry "HUN"]
[SourceTitle "playchess.com"]
[Source "ChessBase"]
[SourceQuality "1"]
[WhiteTeam "Norway"]
[BlackTeam "Canada"]
[WhiteTeamCountry "NOR"]
[BlackTeamCountry "CAN"]
[TimeControl "40/5400+30:1800+30"]

{[%evp 16,97,22,16,18,12,47,41,43,37,29,37,28,31,46,41,39,46,27,20,124,124,124,114,123,130,129,131,135,131,131,139,126,129,129,136,143,132,125,125,134,122,149,150,195,172,248,250,247,213,213,204,208,205,183,154,214,151,257,248,297,300,358,354,338,302,420,340,637,587,29980,29981,29984,29985,29985,29986,29991,29992,29993,29994,29994,29995,29995,29995]} 1. e4 {[%emt 0:00:07]} c5 {[%emt 0:00:07]} 2. Nf3 {[%emt 0:00:34]} g6 {[%emt 0:00:09]} 3. c3 {[%emt 0:00:34]} d5 {[%emt 0:00:10]} 4. e5 {[%emt 0:00:26]} Bg4 {[%emt 0:00:12]} 5. Bb5+ {[%emt 0:01:22]} Nc6 {[%emt 0:00:08]} 6. O-O {[%emt 0:00:35] B27: Sicilian: 2 Nf3, unusual Black 2nd moves.} Qb6 {[%emt 0:05:33]} 7. Bxc6+ {[%emt 0:03:16]} Qxc6 {[%emt 0:00:08]} 8. d4 {[%emt 0:00:21]} cxd4 {[%emt 0:14:23]} 9. cxd4 {[%emt 0:00:58]} Nh6 {[%emt 0:00:57]} 10. Nbd2 {[%emt 0:12:25]} Bg7 {[%emt 0:02:37]} 11. h3 {[%emt 0:02:20]} Bf5 {[%emt 0:02:23]} 12. Nb3 {[%emt 0:15:54]} Bc2 {[%emt 0:06:19]} 13. Qe2 {[%emt 0:14:31]} Qc4 $146 {[%emt 0:02:34]} ({Predecessor:} 13... Bxb3 14. axb3 O-O 15. Bf4 e6 16. g4 Kh8 17. Qe3 Ng8 18. Bg5 Qd7 19. Rfc1 Ne7 {1-0 Schmid,T (1974)-Eibersberger,M (2125) Niederoesterreich Landesliga 0304 2003 (4)}) 14. Re1 {[%emt 0:01:55]} Rc8 {[%emt 0:40:32]} 15. Bg5 {[%emt 0:06:21]} Qxe2 $1 {[%emt 0:00:41]} 16. Rxe2 {[%emt 0:00:13]} Bd3 {[%emt 0:06:09]} 17. Re3 {[%emt 0:01:07]} Bf5 {[%emt 0:01:32]} (17... Be4 $1 $11 {keeps the balance.}) 18. g4 $16 {[%emt 0:03:21]} Bd7 {[%emt 0:00:38]} 19. Nc5 {[%emt 0:04:27]} b6 {[%emt 0:00:41]} 20. e6 {[%emt 0:07:23]} (20. Nxd7 {simplifies} Kxd7 21. Ra3 a5 22. Bd2) 20... fxe6 {[%emt 0:00:06]} 21. Nxe6 {[%emt 0:01:18]} Bxe6 {[%emt 0:00:05]} 22. Rxe6 {[%emt 0:00:03]} O-O {[%emt 0:02:14]} 23. Kg2 {[%emt 0:01:39]} Nf7 {[%emt 0:02:03]} 24. Bxe7 {[%emt 0:01:01]} Rfe8 {[%emt 0:00:06]} 25. Rae1 {[%emt 0:00:13]} Bf8 {[%emt 0:01:35]} 26. Bxf8 {[%emt 0:04:57]} Rxe6 {[%emt 0:00:06]} 27. Rxe6 {[%emt 0:00:03]} Kxf8 {[%emt 0:00:04]} 28. Re2 {[%emt 0:00:12]} Rc1 {[%emt 0:03:27]} 29. Kg3 {[%emt 0:04:42]} Nd6 {[%emt 0:00:42]} 30. Kf4 {[%emt 0:01:18]} Rc7 {[%emt 0:03:44]} (30... Nf7 $142 31. h4 h5 32. gxh5 gxh5) 31. Ng5 $18 {[%emt 0:00:49]} Rd7 {[%emt 0:00:07]} 32. Ke5 {[%emt 0:04:50]} Nf7+ {[%emt 0:01:39]} 33. Kf6 {[%emt 0:00:08]} Nxg5 {[%emt 0:00:06]} 34. Kxg5 {[%emt 0:00:03]} Kg7 {[%emt 0:00:14]} 35. f4 {[%emt 0:01:52]} h6+ {[%emt 0:00:38]} 36. Kh4 {[%emt 0:00:02]} Rc7 {[%emt 0:00:56]} (36... Rf7 $16 {was called for.}) 37. Re5 $18 {[%emt 0:00:21]} Rc2 {[%emt 0:00:05]} 38. Rxd5 {[%emt 0:01:09]} Rxb2 {[%emt 0:00:07]} 39. Rd7+ {[%emt 0:02:42]} Kg8 {[%emt 0:01:17]} 40. Rxa7 {[%emt 0:00:34]} Rb4 {[%emt 0:00:21]} 41. Rd7 {[%emt 0:31:19]} Ra4 $2 {[%emt 0:31:36]} (41... Kf8 42. g5 hxg5+ 43. Kxg5 Ke8) 42. g5 $18 {[%emt 0:00:00]} Rxa2 {[%emt 0:00:00]} 43. gxh6 {[%emt 0:00:00]} b5 {[%emt 0:00:00]} 44. h7+ {[%emt 0:00:00]} Kh8 {[%emt 0:00:00]} 45. Kg5 {[%emt 0:00:00]} Ra6 {[%emt 0:00:00]} 46. d5 {[%emt 0:00:00]} Rb6 {[%emt 0:00:00]} 47. Kh6 {[%emt 0:00:00]} Rb8 {[%emt 0:00:00]} 48. d6 {[%emt 0:00:00]} (48. Kxg6 b4 49. Re7 b3 $18) 48... b4 {[%emt 0:00:00]} 49. Rg7 {[%emt 0:00:00]} ({Weaker is} 49. Kxg6 b3 50. Re7 b2 $11) 1-0

[Event "45th FIDE Olympiad 2024"]
[Site "Budapest"]
[Date "2024.09.12"]
[Round "2.26"]
[White "Erfan, Mohamad Firdaus"]
[Black "Amer, Karim"]
[Result "0-1"]
[ECO "E48"]
[WhiteElo "1758"]
[BlackElo "2081"]
[Annotator "NA"]
[PlyCount "98"]
[EventDate "2024.09.05"]
[EventType "team-tourn"]
[EventCountry "HUN"]
[SourceTitle "playchess.com"]
[Source "ChessBase"]
[SourceQuality "1"]
[WhiteTeam "Qatar"]
[BlackTeam "Pakistan"]
[WhiteTeamCountry "QAT"]
[BlackTeamCountry "PAK"]
[TimeControl "40/5400+30:1800+30"]

1. d4 Nf6 2. c4 e6 3. Nc3 Bb4 4. e3 c5 5. Bd3 Nc6 6. Nge2 O-O 7. O-O d5 8. cxd5 exd5 9. a3 c4 10. Bc2 Ba5 11. f3 Bb6 12. b3 cxb3 13. Bxb3 Bf5 14. Ng3 Bg6 15. f4 Bc7 16. Qf3 Ne7 17. Bb2 Bd3 18. Rfd1 Ba6 19. Nh5 Nxh5 20. Qxh5 Bc4 21. Bxc4 dxc4 22. Qf3 Ba5 23. e4 Qb6 24. Qf2 Rfd8 25. Rac1 Rac8 26. Na4 Qb3 27. Qc2 Qe3+ 28. Kh1 Qxf4 29. Rf1 Qd2 30. d5 Ng6 31. Qxd2 Bxd2 32. Rc2 Bf4 33. Bd4 b6 34. g3 Be5 35. Be3 Bd6 36. Nc3 Ne5 37. Nb5 Bc5 38. Bxc5 Rxc5 39. Nxa7 Ra8 40. Rf5 f6 41. Rxe5 fxe5 42. Nc6 c3 43. Nxe5 Rxa3 44. Nd3 Rc4 45. e5 Rd4 46. Nf4 Rd1+ 47. Kg2 Rd2+ 48. Kh3 Rxc2 49. e6 Rd2 0-1

[Event "45th FIDE Olympiad 2024"]
[Site "Budapest"]
[Date "2024.09.12"]
[Round "2.27"]
[White "Preotu, Razvan"]
[Black "Amar, Elham"]
[Result "1-0"]
[ECO "B92"]
[WhiteElo "2451"]
[BlackElo "2539"]
[Annotator "TA"]
[PlyCount "115"]
[EventDate "2024.09.05"]
[EventType "team-tourn"]
[EventCountry "HUN"]
[SourceTitle "playchess.com"]
[Source "ChessBase"]
[SourceQuality "1"]
[WhiteTeam "Canada"]
[BlackTeam "Norway"]
[WhiteTeamCountry "CAN"]
[BlackTeamCountry "NOR"]
[TimeControl "40/5400+30:1800+30"]

{[%evp 37,115,15,50,0,0,0,9,-34,58,0,0,-31,-31,-47,-49,-29,-43,-38,20,12,0,0,0,0,0,0,0,0,12,0,50,49,34,31,35,51,58,53,51,69,41,36,95,113,169,185,160,172,181,185,193,190,174,189,173,177,166,161,208,170,183,187,239,120,228,229,233,233,376,359,638,635,640,640,633,633,626,625,29967,29958]} 1. e4 {[%emt 0:00:05]} c5 {[%emt 0:00:08]} 2. Nf3 {[%emt 0:00:12]} d6 {[%emt 0:00:06]} 3. d4 {[%emt 0:00:44]} cxd4 {[%emt 0:00:08]} 4. Nxd4 {[%emt 0:00:15]} Nf6 {[%emt 0:00:11]} 5. Nc3 {[%emt 0:00:11]} a6 {[%emt 0:00:05]} 6. Be2 {[%emt 0:04:40]} e5 {[%emt 0:01:06]} 7. Nb3 {[%emt 0:00:08]} Be7 {[%emt 0:01:06]} 8. O-O {[%emt 0:01:19]} O-O {[%emt 0:01:15]} 9. Qd3 {[%emt 0:03:43]} Nbd7 {[%emt 0:09:29] B92: Sicilian Najdorf: 6 Be2.} 10. a4 {[%emt 0:00:16]} b6 {[%emt 0:00:41]} 11. Be3 {[%emt 0:17:49]} Bb7 {[%emt 0:00:58]} 12. Bf3 {[%emt 0:00:40]} Rc8 {[%emt 0:05:49]} 13. Rfd1 {[%emt 0:02:26]} Qc7 {[%emt 0:03:37]} 14. Nd2 {[%emt 0:05:38]} Rfd8 {[%emt 0:07:17]} 15. Qe2 {[%emt 0:01:05]} h6 {[%emt 0:06:34]} 16. Nf1 {[%emt 0:01:27]} Bf8 {[%emt 0:06:47]} 17. h3 $146 {[%emt 0:04:29]} ({Predecessor:} 17. Ng3 g6 18. Rd2 Nc5 19. Rad1 Re8 20. h4 Ne6 21. Bg4 Nxg4 22. Qxg4 Kh7 23. h5 {1-0 Hvenekilde,J-Degenhardt,N EU-chT 04th Group2 1967 (3.1)}) 17... Qb8 {[%emt 0:07:14]} 18. Ng3 {[%emt 0:12:36]} Re8 {[%emt 0:13:52]} 19. Rd2 {[%emt 0:13:13]} g6 {[%emt 0:06:56]} 20. h4 {[%emt 0:00:10]} (20. Bg4 $14) 20... h5 $11 {[%emt 0:00:32]} 21. Bg5 {[%emt 0:01:24]} Qc7 {[%emt 0:03:15]} 22. Qd1 {[%emt 0:05:30]} Re6 {[%emt 0:06:18]} (22... Nh7 $15) 23. Nf1 {[%emt 0:01:27]} (23. Be2 $14) 23... Nh7 $11 {[%emt 0:00:39]} 24. Nd5 {[%emt 0:00:55]} Bxd5 {[%emt 0:00:44]} 25. exd5 {[%emt 0:00:07]} Ree8 {[%emt 0:00:09]} 26. Be3 {[%emt 0:03:05]} f5 {[%emt 0:00:23]} 27. g3 {[%emt 0:00:04]} Ndf6 {[%emt 0:03:23]} ({Black should try} 27... Bg7 $15) 28. Ra3 {[%emt 0:00:14]} Ng4 {[%emt 0:01:48]} 29. Bxg4 {[%emt 0:00:45]} hxg4 {[%emt 0:00:06]} 30. Rb3 {[%emt 0:00:04]} Rb8 {[%emt 0:00:20]} 31. Rdd3 {[%emt 0:00:28]} Nf6 {[%emt 0:02:37]} 32. Rdc3 {[%emt 0:02:45]} Qf7 {[%emt 0:00:07]} 33. Rc6 {[%emt 0:04:25]} Qxd5 {[%emt 0:02:34]} (33... b5 $11) 34. Qxd5+ $14 {[%emt 0:00:06]} Nxd5 {[%emt 0:00:05]} 35. c4 {[%emt 0:00:04]} Nf6 {[%emt 0:02:23]} 36. Rbxb6 {[%emt 0:06:04]} Nd7 $1 {[%emt 0:04:24]} 37. Rxa6 {[%emt 0:02:45]} Rxb2 {[%emt 0:00:14]} 38. Ra7 {[%emt 0:04:41]} Nf6 {[%emt 0:00:30]} 39. c5 {[%emt 0:01:37]} Rc2 {[%emt 0:04:02]} ({Black should play} 39... Ne4 $14) 40. Raa6 $16 {[%emt 0:00:12]} f4 {[%emt 0:02:04]} (40... Kf7 $16) 41. gxf4 $18 {[%emt 0:30:25]} (41. cxd6 Rxc6 42. Rxc6 fxe3 43. Nxe3 Kf7 $17) 41... exf4 {[%emt 0:30:30]} 42. Bxf4 {[%emt 0:01:38]} Nd5 {[%emt 0:00:00]} 43. Bd2 $1 {[%emt 0:00:00]} ({And not} 43. cxd6 Rxc6 44. Rxc6 Nxf4 $15) ({Worse is} 43. Bxd6 Nb4 $11) 43... Rxc5 {[%emt 0:00:00]} 44. Rxc5 {[%emt 0:00:00]} dxc5 {[%emt 0:00:00]} 45. Rxg6+ {[%emt 0:00:00]} Kh7 {[%emt 0:00:00]} 46. Rxg4 {[%emt 0:00:00]} Ra8 {[%emt 0:00:00]} 47. Ng3 {[%emt 0:00:00]} Be7 {[%emt 0:00:00]} (47... Bh6 $142) 48. Nf5 {[%emt 0:00:00]} Bf8 {[%emt 0:00:00]} 49. h5 {[%emt 0:00:00]} Nb4 {[%emt 0:00:00]} (49... Rc8 $142 50. Kf1 Nf6) 50. Rg6 {[%emt 0:00:00]} (50. Re4 $18) 50... Nd5 {[%emt 0:02:39]} (50... Rxa4 $16 {keeps fighting.} 51. Kg2 Nd5) 51. Rc6 $1 $18 {[%emt 0:00:00]} Rxa4 {[%emt 0:00:43] [#]} 52. Rc8 $1 {[%emt 0:00:00]} Bg7 {[%emt 0:01:38]} (52... Rg4+ {was called for.} 53. Kh2 Be7 54. Nxe7 Nxe7 55. Rxc5 (55. Rc7 Rg7 $18) 55... Rd4) 53. Rxc5 $18 {[%emt 0:00:00]} Rg4+ $2 {[%emt 0:00:58]} (53... Nf6 54. Rc7 Nxh5) 54. Kf1 $18 {[%emt 0:00:00]} Nf6 {[%emt 0:00:31]} 55. f3 {[%emt 0:00:34]} Ra4 {[%emt 0:00:30]} 56. Rc7 {[%emt 0:00:25]} Nxh5 {[%emt 0:00:32] [#]} 57. Nxg7 $1 {[%emt 0:00:06]} Ra1+ {[%emt 0:00:31]} 58. Kf2 {[%emt 0:00:13]} 1-0

[Event "45th FIDE Olympiad 2024"]
[Site "Budapest"]
[Date "2024.09.12"]
[Round "2.27"]
[White "Momin, Fayzan"]
[Black "Al Qassabi, Mohammed"]
[Result "1-0"]
[ECO "C87"]
[WhiteElo "2064"]
[BlackElo "1521"]
[Annotator "NA"]
[PlyCount "67"]
[EventDate "2024.09.05"]
[EventType "team-tourn"]
[EventCountry "HUN"]
[SourceTitle "playchess.com"]
[Source "ChessBase"]
[SourceQuality "1"]
[WhiteTeam "Pakistan"]
[BlackTeam "Qatar"]
[WhiteTeamCountry "PAK"]
[BlackTeamCountry "QAT"]
[TimeControl "40/5400+30:1800+30"]

1. e4 e5 2. Nf3 Nc6 3. Bb5 a6 4. Ba4 Nf6 5. O-O Be7 6. Re1 d6 7. c3 O-O 8. h3 h6 9. d4 exd4 10. cxd4 b5 11. Bb3 Re8 12. Nbd2 Bf8 13. a3 Na5 14. Bc2 Be6 15. b3 c5 16. d5 Bd7 17. Bb2 Nb7 18. Nf1 b4 19. a4 Rc8 20. N3d2 Be7 21. Bd3 a5 22. Ng3 Nh7 23. Nc4 Bh4 24. Re3 Bf6 25. Bxf6 Nxf6 26. Ra2 Re7 27. f4 Qc7 28. Qf3 Rce8 29. Rae2 Kh8 30. Bc2 Kg8 31. e5 Nh7 32. exd6 Rxe3 33. dxc7 Rxf3 34. Rxe8+ 1-0